{"text_format":"1","workbook":"xlsx","n_sheets":4,"sheets":["Agent ","Etat des services","Activité valorisante ","paramètres"],"not_rendered":{"charts":0,"images":0,"macros":1,"external_links":0,"defined_names":3,"comments":0,"pivot_tables":0},"unopened":[],"bounds":{"document_bytes":16777216,"sheet_cells":100000,"rows_first":2000,"rows_last":500,"rows_between":2000,"halvings":0,"cell_chars":16384,"cell_head_chars":4096},"cells_cut":0,"cells_raw":0,"read":"whole","date_system":"1900"}

{"sheet":"Agent ","index":0,"n_rows":73,"n_cols":9,"rows_kept":73,"cut":false,"hidden":false,"merged":[[41,0,41,3],[33,2,33,3],[34,2,34,3],[35,2,35,3],[15,0,15,1],[15,2,15,3],[38,0,38,3],[40,0,40,3],[37,0,37,1],[21,1,22,1],[25,0,25,3],[30,0,30,3],[16,2,16,3],[32,2,32,3],[63,0,63,3],[64,0,64,1],[64,2,64,3],[21,4,22,4],[46,2,46,3],[23,4,24,4],[23,1,24,1],[26,2,26,3],[28,0,28,3],[23,2,24,3],[49,0,49,3],[36,0,36,3],[29,0,29,1],[29,2,29,3],[27,2,27,3],[31,2,31,3],[69,0,70,0],[67,1,69,3],[70,1,70,3],[17,2,17,3],[18,2,18,3],[19,0,19,3],[20,0,20,1],[20,2,20,3],[21,2,22,3],[58,0,58,1],[50,2,50,3],[50,0,50,1],[43,0,43,2],[42,0,42,2],[46,0,46,1],[65,2,65,3],[72,0,72,3],[39,0,39,3],[51,0,51,1],[52,0,52,1],[53,0,53,1],[60,0,60,1],[60,2,60,3],[54,0,54,1],[55,0,55,1],[56,0,56,1],[57,0,57,1],[61,2,61,3],[62,2,62,3],[48,0,48,3],[47,2,47,3],[44,0,44,2],[0,0,0,3],[1,0,1,3],[2,1,2,3],[3,1,3,3],[4,1,4,3],[5,1,5,3],[6,1,6,3],[7,1,7,3],[8,1,8,3],[14,0,14,3],[10,1,10,3],[11,1,11,3],[12,2,12,3],[13,0,13,3]]}
["PROMOTION INTERNE  Catégorie B                                                   "]
["ANNEE 2022"]
["Grade postulé",null,null,null,null,null,null,null," "]
["Collectivité"]
["ADRESSE"]
[]
["TEL"]
["Mail"]
["NOM Prénom de l'agent proposé"]
["Date de naissance",null,{"$f":"IF(B10=\"\",0,(ROUNDDOWN((paramètres!A30-B10)/360,0)))","v":0},"ANS"]
["Grade actuel"]
["Echelon"]
["L'agent a-t-il occupé le poste de secrétaire de Mairie plus de 4 ans ?"]
[]
["Nommer le fichier selon le mode suivant :                                                                                                                                     REDACTEUR (grade postulé) DUPONT Pierre (NOM Prénom) - BONNEVILLE (Collectivité).                                                                                                                                               Après signature de l'autorité territoriale, le scanner et l'envoyer sous format PDF et sous Format Excel                                                   à : promotion.interne2022@cdg49.fr                                                                                                                                                                                                                                                               avant le 15 janvier 2022."]
["1/ Examen professionnel ou concours (25 points max)",null,"Note sur …"]
["L'agent a-t-il passé avec succès l'examen professionnel ? ",null,"10 points ",null,{"$f":"IF(B17=\"OUI\",10,0)","v":0}]
["L'agent a-t-il été lauréat du concours donnant accès au grade sans avoir été nommé ?",null,"10 points ",null,{"$f":"IF(B18=\"OUI\",10,0)","v":0}]
["L'agent s'est-il présenté au concours donnant accès  au grade sans succès ? ",null,"5 points ",null,{"$f":"IF(B19=\"OUI\",5,0)","v":0}]
[null,null,null,null,{"$f":"E17+E18+E19","v":0}]
["2/ Valorisation des acquis et de l'expérience                                       (15 points max au titre du 2.1 et 2.2 + 5 points max au titre du 2.3)",null,"Note sur …"]
["2.1 Ancienneté dans le cadre d'emplois inférieur permettant l'accès au grade postulé                      ",{"$f":"'Etat des services'!I40","v":0},"1 point par année révolue plafonné à 15 points",null,{"$f":"MIN(15,B22)","v":0}]
[]
["2.2 Ancienneté dans une activité valorisante pour le grade postulé. (notamment : assistant de prévention, SST, CT, CAP, CHSCT, COS, CNAS - ne pas inscrire d'ancienneté pour les correspondants CNAS-, membre d'association, activité dans le secteur privé, activité dans le secteur public ...)",{"$f":"'Activité valorisante '!G19","v":0},"1 point par année révolue, valablement retenue, plafonné à 15 points",null,{"$f":"MIN(15,B24)","v":0}]
[]
[null,null,null,null,{"$f":"MIN(15,(E22+E24))","v":0}]
["2.3 L'agent se trouve-t-il au dernier échelon du grade inférieur permettant l'accès au grade postulé ?                        "]
["Si oui, saisir le nombre d'années",null,"1,5 point par année révolue dans l'échelon plafonné à 5 points",null,{"$f":"MIN(5,(ROUNDDOWN(B28,0)*1.5))","v":0}]
[null,null,null,null,{"$f":"MIN(15,E26+E28)","v":0}]
["3/ Valeur professionnelle (10 points max)",null,"Note sur …"]
["L'autorité d'emploi acte-t-elle de la valeur de l'agent au regard des éléments ci-dessous ?",null,null,null,null,null,null,null," "]
["3.1 L'implication professionnelle",null,"2,5 points",null,{"$f":"IF(B32=\"oui\",2.5,0)","v":0}]
["3.2 La compétence professionnelle",null,"2,5 points",null,0]
["3.4 La qualité relationnelle mise en œuvre avec et ou les élus, la hiérarchie",null,"2,5 points",null,0]
["3.4 La qualité managériale vis-à-vis du ou des N-1",null,"2,5 points",null,0]
["3.2 L'expertise professionnelle",null,"2,5 points",null,{"$f":"IF(B36=\"oui\",2.5,0)","v":0}]
[null,null,null,null,{"$f":"MIN(10,(E32+E33+E34+E35+E36))","v":0}]
["4/ Poste occupé par l’agent (30 points max)"]
["4.1 Responsabilité et ou expertise particulière ou technicité particulière"]
["DESCRIPTIF DU POSTE OCCUPE PAR L'AGENT "]
["OBLIGATOIRE"]
[]
["S'agit-il d'un poste de secrétaire de Mairie de moins de 1000 hab donnant lieu à NBI",null,null,null,{"$f":"IF(D43=\"oui\",30,0)","v":0}]
["S'agit-il d'un poste sur lequel l'agent exerce des fonctions de direction, de responsabilité de service dans une collectivité territoriale ou un établissement public dont l'emploi de DGS est classé +5 000 habitants",null,null,null,{"$f":"IF(D44=\"oui\",30,0)","v":0}]
["S'agit-il d'un poste sur lequel l'agent exerce une responsabilité et/ou fait preuve d'une technicité particulière (2 à 30 points) ?                                                                                       ",null,null,null,{"$f":"IF(D45=\"oui\",30,0)","v":0}]
[]
["4.2 Encadrement",null,"Note sur …"]
["Nombre total d'agents relevant de la responsabilité hiérarchique de l'agent","Aucun","5 points",null,{"$f":"VLOOKUP(B48,encadrement,2,0)","v":0}]
["TOTAL DES POINTS ATTRIBUES",null,null,null,{"$f":"MIN(30,(E48+E45+E44+E43))","v":0}]
["5/ Stages ou Formations en adéquation avec les missions du grade postulé (5 points max)"]
[null,null,"1 point pour 5 jours révolus dans la limite de 3 points"]
["Intitulé de la formation (globaliser si plusieurs sessions)",null,"Saisir le nombre de jours de formation"]
[null,null,null,{"$f":"C53/5","v":0}]
[null,null,null,0]
[null,null,null,0]
[null,null,null,0]
[null,null,null,0]
[null,null,null,0]
["Nombre total de jours de formations reprises ci-dessus",null,{"$f":"SUM(C53:C58)","v":0},{"$f":"SUM(D53:D58)","v":0},{"$f":"MIN(3,D59)","v":0}]
[]
["Formation initiale ",null,"Note sur …"]
["Agent titulaire d'un diplôme supérieur au  niveau 4 (ancien niveau IV) (niveau bac) ",null,"2 points",null,{"$f":"IF(B62=\"oui\",2,0)","v":0}]
["Agent titulaire d'un diplôme de niveau 4                             (ancien niveau IV) (niveau bac)",null,"1 points",null,{"$f":"IF(B63=\"oui\",1,0)","v":0}]
[null,null,null,null,{"$f":"MIN(5,(E63+E62+E59))","v":0}]
["6/ Promotions interne antérieures (10 points)",null,"Note sur …"]
["L'agent a-t-il déjà bénéficié d'une promotion interne ou une promotion sociale (ancienne appellation) ?                                                         ",null,"10 points",null,{"$f":"IF(B66=\"non\",10,0)","v":0}]
[]
["à ………………….."]
["le AA/MM/JJ"]
["\"Nom Prénom de l'autorité territoriale\" certifiant l'exactitude les renseignements portés sur le présent document"]
[null,"Cachet et signature"]
[]
["TOTAL DES POINTS ATTRIBUES",null,null,null,{"$f":"E66+E64+E49+E37+E29+E20","v":0}]

{"sheet":"Etat des services","index":1,"n_rows":47,"n_cols":12,"rows_kept":47,"cut":false,"hidden":true,"merged":[[1,4,1,7],[1,0,2,3],[39,0,39,3],[3,0,3,3],[19,0,19,3],[24,0,24,3],[25,0,25,3],[30,0,30,3],[21,0,21,3]]}
[]
["Ancienneté (services publics effectifs) dans un ou des grades permettant l'accès au grade postulé déduction faite des périodes d'interruptions d'activité (disponibilité, congé parental)"]
[null,null,null,null,"2021-12-31","Années","Mois","Jours"]
["Contractuel"]
["du",null,"au",null,{"$f":"IF($D$5=\"\",0,DAYS360(B5,$D$5))","v":0},{"$f":"ROUNDDOWN(E5/360,0)","v":0},{"$f":"ROUNDDOWN((E5-(F5*360))/30,0)","v":0},{"$f":"ROUNDDOWN(E5-(F5*360)-(G5*30),0)","v":0},null,null," "]
["du",null,"au",null,{"$f":"IF($D$6=\"\",0,DAYS360(B6,$D$6))","v":0},0,0,0]
["du",null,"au",null,{"$f":"IF($D$7=\"\",0,DAYS360(B7,$D$7))","v":0},0,0,0]
["du",null,"au",null,{"$f":"IF($D$8=\"\",0,DAYS360(B8,$D$8))","v":0},0,0,0]
["du",null,"au",null,{"$f":"IF($D$9=\"\",0,DAYS360(B9,$D$9))","v":0},0,0,0]
["du",null,"au",null,{"$f":"IF($D$10=\"\",0,DAYS360(B10,$D$10))","v":0},0,0,0]
["du",null,"au",null,{"$f":"IF($D$11=\"\",0,DAYS360(B11,$D$11))","v":0},0,0,0]
["du",null,"au",null,{"$f":"IF($D$12=\"\",0,DAYS360(B12,$D$12))","v":0},0,0,0]
["du",null,"au",null,{"$f":"IF($D$13=\"\",0,DAYS360(B13,$D$13))","v":0},0,0,0]
["du",null,"au",null,{"$f":"IF($D$14=\"\",0,DAYS360(B14,$D$14))","v":0},0,0,0]
["du",null,"au",null,{"$f":"IF($D$15=\"\",0,DAYS360(B15,$D$15))","v":0},0,0,0]
["du",null,"au",null,{"$f":"IF($D$16=\"\",0,DAYS360(B16,$D$16))","v":0},0,0,0]
["du",null,"au",null,{"$f":"IF($D$17=\"\",0,DAYS360(B17,$D$17))","v":0},0,0,0]
["du",null,"au",null,{"$f":"IF($D$18=\"\",0,DAYS360(B18,$D$18))","v":0},0,0,0]
[null,null,null,null,{"$f":"SUM(E5:E18)","v":0},0,0,0]
["Stagiaire",null,null,null,null,null,null,null,null,null," "]
["du",null,"au",null,{"$f":"IF($D$21=\"\",0,DAYS360(B21,$D$21))","v":0},{"$f":"ROUNDDOWN(E21/360,0)","v":0},{"$f":"ROUNDDOWN((E21-(F21*360))/30,0)","v":0},{"$f":"ROUNDDOWN(E21-(F21*360)-(G21*30),0)","v":0}]
["Titulaire"]
["depuis le",null,null," ",{"$f":"IF(B23<>0,IF($E$3=\"\",0,DAYS360(B23,$E$3)))","v":false},{"$f":"ROUNDDOWN(E23/360,0)","v":0},{"$f":"ROUNDDOWN((E23-(F23*360))/30,0)","v":0},{"$f":"ROUNDDOWN(E23-(F23*360)-(G23*30),0)","v":0}]
[]
["Périodes d'interruption"]
["congé parental"]
["du",null,"au",null,{"$f":"IF($D$27=\"\",0,DAYS360(B27,D27))","v":0},{"$f":"ROUNDDOWN(E27/360,0)","v":0},{"$f":"ROUNDDOWN((E27-(F27*360))/30,0)","v":0},{"$f":"ROUNDDOWN(E27-(F27*360)-(G27*30),0)","v":0}]
["du",null,"au",null,{"$f":"IF($D$28=\"\",0,DAYS360(B28,$D$28))","v":0},{"$f":"ROUNDDOWN(E28/360,0)","v":0},{"$f":"ROUNDDOWN((E28-(F28*360))/30,0)","v":0},{"$f":"ROUNDDOWN(E28-(F28*360)-(G28*30),0)","v":0}]
["du",null,"au",null,{"$f":"IF($D$29=\"\",0,DAYS360(B29,$D$29))","v":0},{"$f":"ROUNDDOWN(E29/360,0)","v":0},{"$f":"ROUNDDOWN((E29-(F29*360))/30,0)","v":0},{"$f":"ROUNDDOWN(E29-(F29*360)-(G29*30),0)","v":0}]
[null,null,null,null,{"$f":"SUM(E27:E29)","v":0},{"$f":"ROUNDDOWN(E30/360,0)","v":0},{"$f":"ROUNDDOWN((E30-(F30*360))/30,0)","v":0},{"$f":"ROUNDDOWN(E30-(F30*360)-(G30*30),0)","v":0}]
["disponibilité",null,null,null,null,null,null,null,null,null," "]
["du",null,"au",null,{"$f":"IF($D$32=\"\",0,DAYS360(B32,$D$32))","v":0},{"$f":"ROUNDDOWN(E32/360,0)","v":0},{"$f":"ROUNDDOWN((E32-(F32*360))/30,0)","v":0},{"$f":"ROUNDDOWN(E32-(F32*360)-(G32*30),0)","v":0}," "]
["du",null,"au",null,{"$f":"IF($D$33=\"\",0,DAYS360(B33,$D$33))","v":0},0,0,0]
["du",null,"au",null,{"$f":"IF($D$34=\"\",0,DAYS360(B34,$D$34))","v":0},0,0,0]
["du",null,"au",null,{"$f":"IF($D$35=\"\",0,DAYS360(B35,$D$35))","v":0},0,0,0]
["du",null,"au",null,{"$f":"IF($D$36=\"\",0,DAYS360(B36,$D$36))","v":0},0,0,0]
["du",null,"au",null,{"$f":"IF($D$37=\"\",0,DAYS360(B37,$D$37))","v":0},0,0,0]
[null,null,null,null,{"$f":"SUM(E32:E37)","v":0},0,{"$f":"ROUNDDOWN((E38-(F38*360))/30,0)","v":0},{"$f":"ROUNDDOWN(E38-(F38*360)-(G38*30),0)","v":0},null,null,null," "]
[]
["Ancienneté (services publics effectifs) dans un ou des grades permettant l'accès au grade postulé  déduction faite des périodes d'interruptions d'activité (disponibilité, congé parental)",null,null,null,{"$f":"SUM(E19,E21,E23)-E30-E38","v":0},0,{"$f":"ROUNDDOWN((E40-(F40*360))/30,0)","v":0},{"$f":"ROUNDDOWN(E40-(F40*360)-(G40*30),0)","v":0},{"$f":"ROUNDDOWN((F40+(G40/12)+(H40/365)),0)","v":0}]
[]
[]
[]
[null,null,null,null,null,null,null,null," "]
[null,null,null,null,null,null,null,null," "]
[]
[null,null," "]

{"sheet":"Activité valorisante ","index":2,"n_rows":28,"n_cols":12,"rows_kept":28,"cut":false,"hidden":true,"merged":[[2,0,2,4],[3,0,3,4],[1,1,1,4]]}
[]
[]
["Ancienneté dans une activité valorisante",null,null,null,null,"2021-12-31","Années","Mois","Jours"]
["Activité valorisante"]
[null,"du",null,"au",null,{"$f":"IF($E$5=\"\",0,DAYS360(C5,$E$5))","v":0},{"$f":"ROUNDDOWN(F5/360,0)","v":0},{"$f":"ROUNDDOWN((F5-(G5*360))/30,0)","v":0},{"$f":"ROUNDDOWN(F5-(G5*360)-(H5*30),0)","v":0},null,null," "]
[null,"du",null,"au",null,{"$f":"IF($E$6=\"\",0,DAYS360(C6,$E$6))","v":0},0,0,0]
[null,"du",null,"au",null,{"$f":"IF($E$7=\"\",0,DAYS360(C7,$E$7))","v":0},0,0,0]
[null,"du",null,"au",null,{"$f":"IF($E$8=\"\",0,DAYS360(C8,$E$8))","v":0},0,0,0]
[null,"du",null,"au",null,{"$f":"IF($E$9=\"\",0,DAYS360(C9,$E$9))","v":0},0,0,0]
[null,"du",null,"au",null,{"$f":"IF($E$10=\"\",0,DAYS360(C10,$E$10))","v":0},0,0,0]
[null,"du",null,"au",null,{"$f":"IF($E$11=\"\",0,DAYS360(C11,$E$11))","v":0},0,0,0]
[null,"du",null,"au",null,{"$f":"IF($E$12=\"\",0,DAYS360(C12,$E$12))","v":0},0,0,0]
[null,"du",null,"au",null,{"$f":"IF($E$13=\"\",0,DAYS360(C13,$E$13))","v":0},0,0,0]
[null,"du",null,"au",null,{"$f":"IF($E$14=\"\",0,DAYS360(C14,$E$14))","v":0},0,0,0]
[null,"du",null,"au",null,{"$f":"IF($E$15=\"\",0,DAYS360(C15,$E$15))","v":0},0,0,0]
[null,"du",null,"au",null,{"$f":"IF($E$16=\"\",0,DAYS360(C16,$E$16))","v":0},0,0,0]
[null,"du",null,"au",null,{"$f":"IF($E$17=\"\",0,DAYS360(C17,$E$17))","v":0},0,0,0]
[null,"du",null,"au",null,{"$f":"IF($E$18=\"\",0,DAYS360(C18,$E$18))","v":0},0,0,0]
[null,null,null,null,null,{"$f":"SUM(F5:F18)","v":0},0,0,0]
[]
[]
[]
[]
[]
[null,null,null,null,null,null,null,null,null," "]
[null,null,null,null,null,null,null,null,null," "]
[]
[null,null,null," "]

{"sheet":"paramètres","index":3,"n_rows":37,"n_cols":2,"rows_kept":37,"cut":false,"hidden":true,"merged":[]}
["oui"]
["non"]
[]
["Rédacteur "]
["Rédacteur principal de 2ème classe"]
["Animateur "]
["Animateur principal de 2ème classe"]
["Assistant de conservation du patrimoine et des bibliothèques"]
["Assistant de conservation du patrimoine et des bibliothèques  principal de 2ème classe"]
["Educateur des activités physiques et sportives "]
["Educateur des activités physiques et sportives principal de 2ème classe"]
["Technicien "]
["Technicien principal de 2ème classe"]
["Chef de service de police municipale"]
[]
["Attaché"]
["Ingénieur"]
["Conseiller socio-éducatif"]
["Conseiller des activités physiques et sportives"]
["Conservateur du patrimoine"]
["Conservateur de bibliothèques"]
["Attaché de conservation du patrimoine"]
["Bibliothécaire"]
["Directeur d'établissement d'enseignement artistique"]
["Professeur d'enseignement artistique"]
["Directeur de police municipale"]
[]
[]
[]
["2021-01-01"]
[null,"valeur renvoyée"]
[]
["Aucun",0]
["au moins 1 agent",2]
["de 2 à 5 agents",3]
["de 6 à 10  agents",4]
["Plus de 10 agents",5]